bitfinex/quotes_SOLUSD_20241111
["timestamp","ask_amount","ask_price","bid_price","bid_amount"]
[1731306324540,1e-08,206.27,206.26,60.8114735]
[1731306324767,16.9090995,206.34,206.26,60.8114735]
[1731306325037,16.9090995,206.33,206.26,60.8114735]
[1731306325342,22.5306,206.43,206.31,16.9090995]
[1731306325641,16.9090995,206.4,206.34,36.9090995]
[1731306326021,16.9090995,206.4,206.34,0.12549]
[1731306326329,16.9090995,206.41,206.34,37.0345895]
[1731306327041,27.02013575,206.4,206.34,27.14562575]
[1731306327243,0.22549,206.51,206.4,20.0]
[1731306327626,27.02013575,206.44,206.4,20.0]
[1731306327829,27.02013575,206.41,206.35,20.0]
[1731306328131,0.2,206.42,206.28,6.09524587]
[1731306328319,0.2,206.42,206.27,43.40233575]
[1731306328320,27.02013575,206.34,206.27,19.58115511]
[1731306328642,27.02013575,206.34,206.27,16.3822]
[1731306328845,27.02013575,206.34,206.27,43.40233575]
[1731306329021,27.03726789,206.34,206.28,0.12549]
[1731306329429,27.03726789,206.33,206.27,16.3822]
[1731306329841,27.03726789,206.34,206.27,16.3822]
[1731306330050,27.03726789,206.35,206.28,27.16275789]
[1731306330220,27.03726789,206.35,206.27,16.3822]
[1731306330221,27.03726789,206.36,206.3,0.12549]
[1731306330539,16.0815,206.41,206.27,16.3822]
[1731306330540,27.03726789,206.33,206.27,16.3822]
[1731306330739,27.03726789,206.32,206.28,0.12549]
[1731306330939,27.03726789,206.33,206.28,0.12549]
[1731306331133,27.03726789,206.35,206.28,0.12549]
[1731306331334,27.03726789,206.35,206.28,27.16275789]
[1731306331848,27.03726789,206.35,206.28,20.12549]
[1731306332445,27.03726789,206.33,206.28,20.12549]
[1731306332840,27.03726789,206.34,206.28,20.12549]
[1731306333148,27.03726789,206.31,206.27,20.0]
[1731306333445,27.03726789,206.29,206.22,16.165]
[1731306333941,0.1,206.36,206.22,16.165]
[1731306333942,27.03726789,206.31,206.25,0.12549]
[1731306334152,27.03726789,206.32,206.25,27.16275789]
[1731306334451,27.03726789,206.3,206.23,0.12549]
[1731306334629,27.03726789,206.3,206.25,0.12549]
[1731306334834,27.03726789,206.28,206.23,20.0]
[1731306335035,27.03726789,206.31,206.23,47.03726789]
[1731306335233,27.03726789,206.32,206.25,20.0]
[1731306335428,27.03726789,206.31,206.25,20.0]
[1731306335731,27.03726789,206.31,206.24,20.12549]
[1731306335941,27.03726789,206.31,206.24,47.16275789]
[1731306336233,27.03726789,206.31,206.26,20.12549]
[1731306336630,27.03726789,206.31,206.25,20.12549]
[1731306336933,27.03726789,206.31,206.25,0.12549]
[1731306337654,27.03726789,206.31,206.24,0.12549]
[1731306338027,27.03726789,206.3,206.24,0.12549]
[1731306338348,43.776884,206.4,206.28,27.03726789]
[1731306338641,43.776884,206.4,206.29,20.0]
[1731306338642,27.03726789,206.35,206.29,20.0]
[1731306338849,27.03726789,206.33,206.29,20.0]
[1731306339042,27.03726789,206.33,206.27,20.12549]
[1731306339249,27.03726789,206.36,206.29,27.03726789]
[1731306339446,27.03726789,206.36,206.3,20.0]
[1731306340250,27.03726789,206.35,206.3,20.0]
[1731306340433,31.98226789,206.4,206.28,47.03726789]
[1731306340751,16.0815,206.41,206.3,27.03726789]
[1731306341051,27.03726789,206.35,206.31,20.0]
[1731306341350,0.1,206.4,206.29,20.0]
[1731306341725,27.03726789,206.32,206.26,20.12549]
[1731306341926,27.03726789,206.33,206.26,47.16275789]
[1731306342146,27.03726789,206.33,206.26,27.16275789]
[1731306342334,27.03726789,206.32,206.26,0.12549]
[1731306342530,27.03726789,206.3,206.23,27.03726789]
[1731306342851,27.03726789,206.29,206.22,46.39104703]
[1731306343948,27.03726789,206.29,206.23,20.0]
[1731306344242,27.03726789,206.3,206.23,47.03726789]
[1731306344449,27.03726789,206.29,206.23,20.0]
[1731306344662,27.03726789,206.25,206.22,3.18877914]
[1731306344954,27.03726789,206.24,206.17,43.05136789]
[1731306345135,15.8482,206.3,206.18,27.16275789]
[1731306345341,27.03726789,206.26,206.2,0.12549]
[1731306345553,27.03726789,206.24,206.17,43.05136789]
[1731306345726,27.03726789,206.25,206.18,27.03726789]
[1731306346150,27.03726789,206.26,206.19,0.12549]
[1731306346334,27.03726789,206.28,206.2,27.03726789]
[1731306347049,27.03726789,206.28,206.21,20.0]
[1731306347645,27.03726789,206.27,206.21,20.0]
[1731306347850,27.03726789,206.25,206.18,27.16275789]
[1731306348041,27.03726789,206.24,206.18,0.12549]
[1731306348454,27.03726789,206.3,206.18,27.16275789]
[1731306348455,27.03726789,206.25,206.18,27.16275789]
[1731306348949,16.91373742,206.24,206.18,0.12549]
[1731306349134,16.91373742,206.21,206.16,6.2676]
[1731306349331,16.91373742,206.25,206.18,16.91373742]
[1731306349546,16.91373742,206.26,206.18,16.91373742]
[1731306349761,16.91373742,206.26,206.16,6.2676]
[1731306349762,23.776884,206.3,206.17,0.12549]
[1731306349930,16.91373742,206.28,206.21,16.91373742]
[1731306350129,16.91373742,206.27,206.2,16.91373742]
[1731306350340,16.91373742,206.26,206.19,16.91373742]
[1731306350839,16.91373742,206.27,206.2,36.91373742]
[1731306351036,16.91373742,206.28,206.21,16.91373742]
[1731306351241,16.91373742,206.28,206.2,36.91373742]
[1731306351439,16.91373742,206.28,206.21,16.91373742]
[1731306351950,16.91373742,206.27,206.2,16.91373742]
[1731306352159,16.91373742,206.26,206.19,16.91373742]
[1731306353050,16.91373742,206.28,206.2,16.91373742]
[1731306353650,16.91373742,206.28,206.21,16.91373742]
[1731306354238,16.91373742,206.29,206.22,36.91373742]
[1731306354946,16.91373742,206.31,206.24,16.91373742]
[1731306355139,16.91373742,206.33,206.26,16.91373742]
[1731306357463,16.91373742,206.35,206.28,16.91373742]
[1731306357751,16.91373742,206.35,206.27,16.91373742]
[1731306357953,20.0,206.38,206.3,16.91373742]
[1731306358263,21.9808,206.42,206.23,0.12549]
[1731306358264,16.91373742,206.37,206.29,16.91373742]
[1731306358557,16.91373742,206.35,206.28,16.91373742]
[1731306359145,21.9808,206.42,206.29,20.0]
[1731306359452,16.91373742,206.39,206.32,16.91373742]
[1731306359646,16.91373742,206.36,206.29,36.91373742]
[1731306360537,16.91373742,206.35,206.29,20.0]
[1731306361340,16.91373742,206.35,206.27,16.91373742]
[1731306361748,16.91373742,206.34,206.27,16.91373742]
[1731306361952,16.91373742,206.33,206.26,16.91373742]
[1731306362245,16.91373742,206.29,206.22,20.18752785]
[1731306362452,16.91373742,206.27,206.22,3.27379043]
[1731306362654,16.91373742,206.28,206.21,16.91373742]
[1731306363044,16.91373742,206.29,206.22,16.91373742]
[1731306363249,16.91373742,206.31,206.24,16.91373742]
[1731306363450,16.91373742,206.3,206.23,16.91373742]
[1731306363856,16.91373742,206.3,206.22,16.91373742]
[1731306364348,16.91373742,206.31,206.24,16.91373742]
[1731306364554,33.13293742,206.32,206.25,16.91373742]
[1731306365441,16.91373742,206.34,206.25,20.0]
[1731306365642,16.91373742,206.35,206.28,16.91373742]
[1731306366059,16.91373742,206.34,206.26,16.91373742]
[1731306366259,16.91373742,206.31,206.24,16.91373742]
[1731306366562,16.91373742,206.31,206.25,20.0]
[1731306366946,16.91373742,206.34,206.27,16.91373742]
[1731306367159,16.91373742,206.35,206.28,16.91373742]
[1731306367353,16.91373742,206.35,206.21,20.0]
[1731306367354,33.13293742,206.38,206.31,16.91373742]
[1731306367747,16.2192,206.38,206.31,16.91373742]
[1731306367958,23.27963742,206.42,206.35,16.91373742]
[1731306368156,16.91373742,206.41,206.34,16.91373742]
[1731306368361,16.91373742,206.4,206.33,16.91373742]
[1731306368745,16.91373742,206.4,206.28,0.12549]
[1731306368746,16.91373742,206.39,206.32,16.91373742]
[1731306368969,16.91373742,206.38,206.31,16.91373742]
[1731306369379,6.3659,206.42,206.33,16.91373742]
[1731306369666,23.27963742,206.42,206.36,16.91373742]
[1731306370044,33.13293742,206.43,206.37,16.91373742]
[1731306370461,6.2707,206.47,206.41,16.91373742]
[1731306370648,16.91373742,206.46,206.39,16.91373742]
[1731306370848,16.91373742,206.45,206.39,16.91373742]
[1731306371050,16.91373742,206.44,206.37,16.91373742]
[1731306371252,16.91373742,206.44,206.37,36.91373742]
[1731306371655,16.91373742,206.45,206.38,16.91373742]
[1731306371964,16.91373742,206.44,206.37,16.91373742]
[1731306372372,16.91373742,206.45,206.38,16.91373742]
[1731306372560,23.18443742,206.47,206.4,16.91373742]
[1731306372867,33.13293742,206.49,206.42,16.91373742]
[1731306373054,33.13293742,206.49,206.35,6.4274]
[1731306373055,16.2192,206.49,206.43,16.91373742]
[1731306373252,33.13293742,206.49,206.42,16.91373742]
[1731306374059,16.91373742,206.48,206.41,16.91373742]
[1731306374363,16.91373742,206.48,206.36,0.12549]
[1731306374364,16.91373742,206.48,206.42,16.91373742]
[1731306374570,33.13293742,206.49,206.42,16.91373742]
[1731306375151,16.91373742,206.48,206.41,16.91373742]
[1731306375359,33.13293742,206.49,206.42,16.91373742]
[1731306375560,4.96789,206.51,206.44,16.91373742]
[1731306375561,17.03922742,206.51,206.44,16.91373742]
[1731306375761,0.12549,206.51,206.45,16.91373742]
[1731306376480,16.91373742,206.5,206.43,16.91373742]
[1731306376856,0.12549,206.51,206.36,19.58814618]
[1731306376857,16.91373742,206.49,206.42,16.91373742]
[1731306377055,16.91373742,206.5,206.42,16.91373742]
[1731306377249,16.91373742,206.5,206.43,16.91373742]
[1731306377456,0.12549,206.51,206.45,16.91373742]
[1731306377651,0.12549,206.51,206.46,16.91373742]
[1731306377870,16.91373742,206.5,206.43,16.91373742]
[1731306378276,0.12549,206.51,206.45,16.91373742]
[1731306378457,16.91373742,206.5,206.43,16.91373742]
[1731306378660,4.96789,206.51,206.42,16.91373742]
[1731306378860,16.91373742,206.48,206.41,16.91373742]
[1731306379161,16.91373742,206.47,206.4,16.91373742]
[1731306379355,16.91373742,206.46,206.4,20.0]
[1731306379661,16.91373742,206.45,206.4,20.0]
[1731306380070,16.91373742,206.46,206.39,36.91373742]
[1731306380574,16.91373742,206.47,206.4,16.91373742]
[1731306381153,16.91373742,206.48,206.41,16.91373742]
[1731306381975,16.91373742,206.49,206.42,16.91373742]
[1731306382278,16.91373742,206.48,206.41,16.91373742]
[1731306382464,16.91373742,206.47,206.4,16.91373742]
[1731306383068,4.96799,206.51,206.37,36.91373742]
[1731306383069,16.91373742,206.44,206.37,36.91373742]
[1731306383472,16.91373742,206.42,206.36,20.0]
[1731306383972,16.91373742,206.37,206.29,23.28973742]
[1731306384274,15.3679,206.43,206.33,16.91373742]
[1731306384275,16.91373742,206.4,206.33,16.91373742]
[1731306384477,16.91373742,206.39,206.33,16.91373742]
[1731306384805,16.91373742,206.37,206.3,16.91373742]
[1731306385076,16.91373742,206.38,206.32,16.91373742]
[1731306385278,16.91373742,206.38,206.31,16.91373742]
[1731306385478,16.91373742,206.39,206.32,16.91373742]
[1731306386159,16.91373742,206.39,206.33,20.0]
[1731306387560,16.91373742,206.37,206.3,36.91373742]
[1731306387761,16.91373742,206.38,206.32,20.0]
[1731306387968,16.91373742,206.39,206.32,16.91373742]
[1731306388277,16.91373742,206.38,206.33,20.0]
[1731306388772,16.91373742,206.38,206.32,20.0]
[1731306388979,16.91373742,206.35,206.28,16.91373742]
[1731306389172,16.91373742,206.32,206.25,16.91373742]
[1731306389364,16.91373742,206.28,206.21,15.0634]
[1731306389574,23.776884,206.33,206.21,15.0634]
[1731306390364,16.91373742,206.3,206.23,16.91373742]
[1731306390574,23.776884,206.33,206.23,16.91373742]
[1731306390760,15.5255,206.34,206.28,16.91373742]
[1731306390967,15.5255,206.34,206.22,20.12549]
[1731306391180,6.2362,206.37,206.31,16.91373742]
[1731306391771,33.32273742,206.4,206.33,16.91373742]
[1731306391964,16.91373742,206.39,206.32,16.91373742]
[1731306392171,16.409,206.4,206.34,16.91373742]
[1731306392371,23.10483742,206.42,206.32,0.12549]
[1731306392570,16.91373742,206.4,206.31,20.0]
[1731306392773,16.91373742,206.37,206.31,20.0]
[1731306393086,16.91373742,206.37,206.21,15.0634]
[1731306393087,16.91373742,206.35,206.21,15.0634]
[1731306393389,16.91373742,206.35,206.29,16.91373742]
[1731306393570,16.91373742,206.36,206.29,16.91373742]
[1731306393980,16.91373742,206.38,206.31,16.91373742]
[1731306394192,16.91373742,206.38,206.22,23.902374]
[1731306394193,40.69062142,206.41,206.22,29.66320926]
[1731306394375,6.1911,206.42,206.35,16.91373742]
[1731306394376,16.91373742,206.42,206.35,16.91373742]
[1731306394700,4.844,206.44,206.27,0.12549]
[1731306394987,16.91373742,206.39,206.32,16.91373742]
[1731306395192,16.91373742,206.37,206.3,16.91373742]
[1731306395489,16.91373742,206.36,206.29,16.91373742]
[1731306395684,16.91373742,206.37,206.3,16.91373742]
[1731306395889,6.0392,206.4,206.35,16.91373742]
[1731306396187,16.91373742,206.41,206.35,16.91373742]
[1731306396487,16.91373742,206.42,206.35,16.91373742]
[1731306396789,16.91373742,206.43,206.36,16.91373742]
[1731306397174,32.72563742,206.44,206.38,16.91373742]
[1731306397679,16.91373742,206.43,206.36,16.91373742]
[1731306398391,32.72563742,206.44,206.37,16.91373742]
[1731306398691,32.72563742,206.44,206.38,16.91373742]
[1731306399071,15.8119,206.44,206.38,16.91373742]
[1731306399270,15.8119,206.44,206.31,20.12549]
[1731306399271,16.91373742,206.48,206.31,20.12549]
[1731306399494,16.91373742,206.47,206.41,16.91373742]
[1731306399816,16.91373742,206.46,206.39,16.91373742]
[1731306400386,16.91373742,206.46,206.4,16.91373742]
[1731306400699,16.4938,206.49,206.34,20.12549]
[1731306400700,16.91373742,206.45,206.38,16.91373742]
[1731306401376,16.91373742,206.44,206.37,16.91373742]
[1731306402190,16.4938,206.49,206.38,0.12549]
[1731306402379,16.4938,206.49,206.45,16.91373742]
[1731306402577,16.4938,206.49,206.44,16.91373742]
[1731306403571,16.4938,206.49,206.43,16.91373742]
[1731306403778,16.91373742,206.48,206.42,16.91373742]
[1731306403996,33.40753742,206.49,206.42,16.91373742]
[1731306404185,23.776884,206.48,206.39,16.91373742]
[1731306404498,23.776884,206.48,206.33,6.2358]
[1731306404499,16.91373742,206.45,206.38,16.91373742]
[1731306404799,16.91373742,206.45,206.39,20.0]
[1731306404989,16.91373742,206.46,206.39,36.91373742]
[1731306405196,16.4938,206.49,206.43,16.91373742]
[1731306405402,16.91373742,206.47,206.4,16.91373742]
[1731306406283,16.91373742,206.48,206.41,16.91373742]
[1731306406597,33.40753742,206.49,206.42,16.91373742]
[1731306406789,16.91373742,206.48,206.41,16.91373742]
[1731306406991,16.91373742,206.46,206.39,16.91373742]
[1731306407189,16.91373742,206.46,206.4,20.0]
[1731306407382,16.91373742,206.48,206.41,36.91373742]
[1731306407702,16.91373742,206.48,206.41,16.91373742]
[1731306407892,16.91373742,206.48,206.42,20.0]
[1731306408199,16.91373742,206.49,206.42,36.91373742]
[1731306408375,16.91373742,206.48,206.42,20.0]
[1731306408580,16.91373742,206.47,206.41,20.0]
[1731306408781,16.91373742,206.49,206.42,16.91373742]
[1731306408996,16.91373742,206.49,206.43,20.0]
[1731306409210,16.91373742,206.5,206.44,0.12549]
[1731306409383,16.91373742,206.5,206.38,6.82629142]
[1731306409384,0.12549,206.51,206.46,20.0]
[1731306409896,0.12549,206.51,206.46,36.91373742]
[1731306410396,0.12549,206.51,206.47,16.91373742]
[1731306411598,0.12549,206.51,206.47,20.0]
[1731306412405,0.12549,206.51,206.49,16.91373742]
[1731306412703,0.12549,206.51,206.5,16.91373742]
[1731306413581,0.12549,206.51,206.5,36.91373742]
[1731306413986,0.12549,206.51,206.5,20.0]
[1731306415199,0.12549,206.51,206.5,37.03922742]
[1731306415403,0.12549,206.51,206.5,53.95296484]
[1731306415593,0.12549,206.51,206.5,37.03922742]
[1731306415896,0.12549,206.51,206.5,20.0]
[1731306416277,0.12549,206.51,206.47,16.91373742]
[1731306417499,0.12549,206.51,206.48,16.91373742]
[1731306417706,0.12549,206.51,206.47,36.91373742]
[1731306418296,0.12549,206.51,206.49,20.0]
[1731306418494,0.12549,206.51,206.47,36.91373742]
[1731306419073,0.12549,206.51,206.47,20.0]
[1731306419405,17.03922742,206.51,206.41,16.1122]
[1731306419613,17.03922742,206.51,206.24,70.0]
[1731306419614,16.91373742,206.46,206.36,16.1122]
[1731306419901,17.03922742,206.51,206.43,16.91373742]
[1731306420300,16.91373742,206.49,206.42,16.91373742]
[1731306420881,17.03922742,206.51,206.44,16.91373742]
[1731306421081,0.12549,206.51,206.45,16.91373742]
[1731306421293,0.12549,206.51,206.47,16.91373742]
[1731306421596,0.12549,206.51,206.46,16.91373742]
[1731306421777,0.12549,206.51,206.41,6.60080142]
[1731306421983,0.12549,206.51,206.46,16.91373742]
[1731306422181,0.12549,206.51,206.44,16.91373742]
[1731306422379,17.03922742,206.51,206.46,20.0]
[1731306422575,16.91373742,206.5,206.43,16.91373742]
[1731306422777,17.03922742,206.51,206.44,16.91373742]
[1731306422990,0.12549,206.51,206.45,16.91373742]
[1731306423801,17.03922742,206.51,206.44,16.91373742]
[1731306423977,17.03922742,206.51,206.46,16.91373742]
[1731306423978,0.12549,206.51,206.46,16.91373742]
[1731306424180,0.12549,206.51,206.48,16.91373742]
[1731306424406,0.12549,206.51,206.49,16.91373742]
[1731306424804,0.12549,206.51,206.47,16.91373742]
[1731306424980,0.12549,206.51,206.46,16.91373742]
[1731306425183,0.12549,206.51,206.47,16.91373742]
[1731306425809,0.12549,206.51,206.48,16.91373742]
[1731306426078,0.12549,206.51,206.49,16.91373742]
[1731306426281,0.12549,206.51,206.5,16.91373742]
[1731306426505,0.12549,206.51,206.48,16.91373742]
[1731306426885,0.12549,206.51,206.49,16.91373742]
[1731306427093,0.12549,206.51,206.5,36.91373742]
[1731306429292,0.12549,206.51,206.5,53.95296484]
[1731306429491,0.12549,206.51,206.5,60.55376626]
[1731306429785,0.12549,206.51,206.5,43.51453884]
[1731306429991,0.12549,206.51,206.5,36.91373742]
[1731306430502,0.12549,206.51,206.5,37.03922742]
[1731306432007,0.12549,206.51,206.5,77.72984884]
[1731306432318,16.91373742,206.65,206.51,43.902374]
[1731306432494,16.91373742,206.65,206.58,16.91373742]
[1731306432700,16.91373742,206.64,206.57,16.91373742]
[1731306433292,16.91373742,206.64,206.51,43.902374]
[1731306433493,16.91373742,206.64,206.57,20.0]
[1731306433695,16.91373742,206.63,206.57,20.0]
[1731306434600,16.91373742,206.62,206.54,16.91373742]
[1731306434901,16.91373742,206.62,206.55,20.0]
[1731306435200,16.91373742,206.59,206.52,16.91373742]
[1731306435507,16.91373742,206.6,206.53,16.91373742]
[1731306435715,16.91373742,206.61,206.54,16.91373742]
[1731306435887,16.91373742,206.62,206.55,16.91373742]
[1731306436207,16.91373742,206.63,206.56,16.91373742]
[1731306436505,16.91373742,206.61,206.54,16.91373742]
[1731306436689,16.91373742,206.61,206.55,20.0]
[1731306437298,16.91373742,206.63,206.56,16.91373742]
[1731306437606,16.91373742,206.66,206.59,16.91373742]
[1731306437792,16.91373742,206.65,206.58,16.91373742]
[1731306438606,16.91373742,206.64,206.58,20.0]
[1731306438815,16.91373742,206.63,206.58,20.0]
[1731306438999,16.91373742,206.66,206.59,16.91373742]
[1731306439308,16.91373742,206.65,206.58,16.91373742]
[1731306439690,16.91373742,206.64,206.58,20.0]
[1731306439890,15.6776,206.68,206.59,16.91373742]
[1731306440183,16.91373742,206.63,206.58,20.0]
[1731306440398,16.91373742,206.62,206.57,20.0]
[1731306440792,16.91373742,206.61,206.54,16.91373742]
[1731306441203,16.91373742,206.62,206.56,16.91373742]
[1731306441414,16.91373742,206.63,206.56,16.91373742]
[1731306441714,16.91373742,206.64,206.57,16.91373742]
[1731306442098,16.91373742,206.64,206.58,20.0]
[1731306442408,16.91373742,206.62,206.58,20.0]
[1731306442796,16.91373742,206.63,206.56,16.91373742]
[1731306443109,16.91373742,206.64,206.57,16.91373742]
[1731306443288,16.91373742,206.65,206.58,16.91373742]
[1731306443494,16.91373742,206.59,206.51,6.60080142]
[1731306443701,16.91373742,206.59,206.52,16.91373742]
[1731306443900,32.90333742,206.6,206.53,16.91373742]
[1731306444292,16.91373742,206.63,206.56,16.91373742]
[1731306444894,16.91373742,206.63,206.57,20.0]
[1731306446005,16.91373742,206.62,206.57,20.0]
[1731306446205,16.91373742,206.61,206.55,20.0]
[1731306446716,16.91373742,206.64,206.57,16.91373742]
[1731306447007,16.91373742,206.64,206.58,20.0]
[1731306447502,16.91373742,206.64,206.58,16.91373742]
[1731306447699,16.91373742,206.64,206.59,20.0]
[1731306447912,16.91373742,206.67,206.6,16.91373742]
[1731306448517,16.91373742,206.66,206.6,20.0]
[1731306448893,16.91373742,206.67,206.6,36.91373742]
[1731306449101,16.91373742,206.66,206.59,16.91373742]
[1731306449297,16.91373742,206.66,206.6,20.0]
[1731306449701,16.91373742,206.66,206.59,16.91373742]
[1731306450810,16.91373742,206.65,206.58,16.91373742]
[1731306451313,37.74123742,206.7,206.53,3.22424643]
[1731306451314,16.91373742,206.64,206.57,16.91373742]
[1731306451520,16.91373742,206.63,206.57,20.0]
[1731306452332,16.91373742,206.64,206.57,36.91373742]
[1731306452539,32.90333742,206.7,206.51,5.10433077]
[1731306452540,16.91373742,206.67,206.6,16.91373742]
[1731306452811,21.98287507,206.77,206.65,16.91373742]
[1731306452991,3.60073487,206.76,206.68,16.91373742]
[1731306453195,16.91373742,206.74,206.68,16.91373742]
[1731306453927,16.91373742,206.73,206.66,16.91373742]
[1731306454607,16.91373742,206.79,206.72,16.91373742]
[1731306454804,16.91373742,206.77,206.7,16.91373742]
[1731306454997,16.91373742,206.76,206.69,16.91373742]
[1731306455409,16.91373742,206.77,206.7,16.91373742]
[1731306455609,16.91373742,206.77,206.66,20.0]
[1731306455610,16.91373742,206.76,206.69,16.91373742]
[1731306455820,16.91373742,206.75,206.69,16.91373742]
[1731306456020,16.91373742,206.76,206.69,16.91373742]
[1731306456317,16.91373742,206.77,206.7,16.91373742]
[1731306456506,16.91373742,206.78,206.71,16.91373742]
[1731306456705,15.9896,206.81,206.66,20.0]
[1731306456706,16.91373742,206.75,206.68,16.91373742]
[1731306457015,16.91373742,206.75,206.69,20.0]
[1731306457900,16.91373742,206.74,206.67,16.91373742]
[1731306458202,16.91373742,206.75,206.68,16.91373742]
[1731306458504,16.91373742,206.78,206.71,16.91373742]
[1731306458897,16.91373742,206.77,206.7,16.91373742]
[1731306459098,16.91373742,206.78,206.71,16.91373742]
[1731306459510,16.91373742,206.76,206.69,20.0]
[1731306459918,16.91373742,206.76,206.69,36.91373742]
[1731306460421,16.91373742,206.75,206.68,16.91373742]
[1731306460804,16.91373742,206.73,206.66,16.91373742]
[1731306461408,16.91373742,206.74,206.67,16.91373742]
[1731306462012,16.91373742,206.73,206.65,32.33463742]
[1731306462313,16.91373742,206.72,206.65,32.33463742]
[1731306463322,16.91373742,206.73,206.66,16.91373742]
[1731306464027,16.91373742,206.71,206.64,16.91373742]
[1731306464504,16.91373742,206.71,206.62,20.0]
[1731306464505,15.91373742,206.68,206.61,16.91373742]
[1731306464712,16.91373742,206.67,206.6,16.91373742]
[1731306465018,16.91373742,206.66,206.59,16.91373742]
[1731306465612,16.91373742,206.65,206.59,16.91373742]
[1731306465819,16.91373742,206.66,206.59,16.91373742]
[1731306466428,16.91373742,206.67,206.6,16.91373742]
[1731306467829,16.91373742,206.68,206.61,16.91373742]
[1731306468828,16.91373742,206.65,206.59,16.91373742]
[1731306469026,16.91373742,206.66,206.59,16.91373742]
[1731306469227,4.8369,206.74,206.57,0.12549]
[1731306469228,4.8369,206.74,206.6,16.91373742]
[1731306469526,16.91373742,206.67,206.6,16.91373742]
[1731306470121,16.91373742,206.66,206.59,16.91373742]
[1731306470525,16.91373742,206.67,206.61,16.91373742]
[1731306470907,16.91373742,206.65,206.58,16.91373742]
[1731306471107,16.91373742,206.66,206.6,16.91373742]
[1731306471314,16.91373742,206.67,206.6,16.91373742]
[1731306472230,16.91373742,206.68,206.61,16.91373742]
[1731306472606,16.91373742,206.68,206.57,20.12549]
[1731306472607,4.8376,206.72,206.63,16.91373742]
[1731306472813,4.8376,206.72,206.64,16.91373742]
[1731306472814,16.91373742,206.71,206.64,16.91373742]
[1731306473110,16.91373742,206.7,206.63,16.91373742]
[1731306474030,16.91373742,206.72,206.65,16.91373742]
[1731306474326,16.91373742,206.74,206.67,16.91373742]
[1731306475106,16.91373742,206.72,206.65,16.91373742]
[1731306475329,16.91373742,206.71,206.64,16.91373742]
[1731306475630,16.91373742,206.71,206.61,0.12549]
[1731306475631,16.91373742,206.7,206.63,16.91373742]
[1731306475812,16.91373742,206.7,206.64,20.0]
[1731306476005,4.837,206.74,206.64,16.91373742]
[1731306476222,22.4234,206.75,206.69,16.91373742]
[1731306476423,39.33713742,206.75,206.68,16.91373742]
[1731306476632,16.91373742,206.73,206.66,16.91373742]
[1731306476806,16.91373742,206.7,206.64,20.0]
[1731306477006,16.91373742,206.71,206.64,36.91373742]
[1731306477431,16.91373742,206.7,206.63,16.91373742]
[1731306477729,22.4234,206.75,206.64,16.91373742]
[1731306478029,16.91373742,206.71,206.64,16.91373742]
[1731306478439,16.91373742,206.71,206.65,16.91373742]
[1731306478933,16.91373742,206.71,206.6,16.91373742]
[1731306478934,16.91373742,206.71,206.59,0.1]
[1731306479124,16.91373742,206.7,206.63,16.91373742]
[1731306480111,4.8372,206.73,206.64,16.91373742]
[1731306480315,16.91373742,206.71,206.64,16.91373742]
[1731306480529,16.91373742,206.7,206.63,16.91373742]
[1731306480732,16.91373742,206.7,206.63,20.0]
[1731306481231,16.91373742,206.72,206.65,16.91373742]
[1731306481435,16.91373742,206.73,206.66,16.91373742]
[1731306481633,16.91373742,206.74,206.66,16.91373742]
[1731306481933,16.91373742,206.7,206.58,0.12549]
[1731306482232,27.2601,206.75,206.64,16.91373742]
[1731306482233,16.91373742,206.72,206.64,16.91373742]
[1731306483838,16.91373742,206.71,206.64,16.91373742]
[1731306484514,4.8371,206.74,206.64,16.91373742]
[1731306484718,16.91373742,206.71,206.61,0.12549]
[1731306485035,16.91373742,206.68,206.61,36.91373742]
[1731306485229,16.91373742,206.69,206.61,36.91373742]
[1731306485429,16.91373742,206.69,206.62,16.91373742]
[1731306486012,16.91373742,206.67,206.6,16.91373742]
[1731306486223,16.91373742,206.68,206.61,16.91373742]
[1731306486417,16.91373742,206.69,206.62,16.91373742]
[1731306486613,16.91373742,206.7,206.63,16.91373742]
[1731306487132,16.91373742,206.71,206.64,16.91373742]
[1731306487839,16.91373742,206.7,206.63,16.91373742]
[1731306490121,16.91373742,206.68,206.61,16.91373742]
[1731306490323,16.91373742,206.69,206.62,16.91373742]
[1731306491842,22.4234,206.75,206.58,0.12549]
[1731306492017,16.91373742,206.74,206.66,16.91373742]
[1731306492720,16.91373742,206.73,206.66,16.91373742]
[1731306492919,16.91373742,206.73,206.65,16.91373742]
[1731306493320,16.91373742,206.72,206.65,16.91373742]
[1731306493537,16.91373742,206.71,206.64,16.91373742]
[1731306493921,16.91373742,206.71,206.63,16.91373742]
[1731306494128,16.91373742,206.71,206.64,36.91373742]
[1731306494539,16.91373742,206.72,206.65,16.91373742]